[Event "14th Margaryan Memorial-IM 2024"]
[Site "Yerevan"]
[Date "2024.01.12"]
[Round "5.9"]
[White "Rostomyan, Mikayel"]
[Black "Pashikyan, Rudolf"]
[Result "1/2-1/2"]
[ECO "D38"]
[WhiteElo "2294"]
[BlackElo "2287"]
[Annotator "RC"]
[PlyCount "157"]
[EventDate "2024.01.08"]
[EventType "tourn"]
[EventCountry "ARM"]
[SourceTitle "playchess.com"]
[Source "ChessBase"]
[SourceQuality "1"]
[TimeControl "40/5400+30:1800+30"]

1. d4 {[%emt 0:00:03]} Nf6 {[%emt 0:00:10]} 2. Nf3 {[%emt 0:00:14]} d5 {[%emt 0:00:05]} 3. c4 {[%emt 0:00:05]} e6 {[%emt 0:00:05]} 4. Nc3 {[%emt 0:00:06]} Bb4 {[%emt 0:00:06]} 5. Bg5 {[%emt 0:00:10]} h6 {[%emt 0:00:07]} 6. Bxf6 {[%emt 0:00:21]} Qxf6 {[%emt 0:00:11]} 7. Qb3 {[%emt 0:00:12]} c5 {[%emt 0:04:27]} 8. cxd5 {[%emt 0:01:44]} exd5 {[%emt 0:00:07]} 9. dxc5 {[%emt 0:00:05]} Bxc3+ {[%emt 0:00:04]} 10. Qxc3 {[%emt 0:00:07]} Qxc3+ {[%emt 0:00:06]} 11. bxc3 {[%emt 0:00:01]} Nd7 {[%emt 0:00:08]} 12. Rd1 {[%emt 0:00:28]} Nf6 {[%emt 0:00:06]} 13. e3 {[%emt 0:02:37]} Bd7 {[%emt 0:05:30]} 14. Rb1 {[%emt 0:10:07]} Rb8 {[%emt 0:20:04]} 15. c4 {[%emt 0:08:57]} Ke7 {[%emt 0:05:33]} 16. cxd5 {[%emt 0:02:21]} Nxd5 {[%emt 0:00:10]} 17. Bc4 {[%emt 0:00:59]} Be6 {[%emt 0:04:50]} 18. Nd4 {[%emt 0:10:31]} Nc3 {[%emt 0:10:30]} 19. Rc1 {[%emt 0:02:54]} Nxa2 {[%emt 0:01:35]} 20. Bxa2 {[%emt 0:03:11]} Bxa2 {[%emt 0:00:08]} 21. Ra1 {[%emt 0:02:57]} Bd5 {[%emt 0:00:38]} 22. Rxa7 {[%emt 0:02:03]} Rhc8 {[%emt 0:00:46]} 23. Kd2 {[%emt 0:04:12]} Rxc5 {[%emt 0:00:41]} 24. f3 {[%emt 0:00:12]} Kf8 {[%emt 0:03:17]} 25. Rb1 {[%emt 0:02:41]} b5 {[%emt 0:00:16]} 26. e4 {[%emt 0:01:31]} Bc4 {[%emt 0:00:12]} 27. Rb4 {[%emt 0:02:03]} Rh5 {[%emt 0:02:47]} 28. h3 {[%emt 0:07:06]} Bf1 {[%emt 0:06:34]} 29. Nf5 {[%emt 0:05:08]} Rxf5 {[%emt 0:26:00]} 30. exf5 {[%emt 0:00:47]} Bxg2 {[%emt 0:00:04]} 31. Rf4 {[%emt 0:07:55]} Bxh3 {[%emt 0:00:59]} 32. Ra1 {[%emt 0:00:34]} b4 {[%emt 0:00:19]} 33. Rh1 {[%emt 0:01:18]} b3 {[%emt 0:00:06]} 34. Kc1 {[%emt 0:01:22]} b2+ {[%emt 0:00:06]} 35. Kb1 {[%emt 0:00:26]} Bg2 {[%emt 0:00:04]} 36. Rh2 {[%emt 0:00:43]} Bf1 {[%emt 0:00:06]} 37. Rxb2 {[%emt 0:00:07]} Rxb2+ {[%emt 0:00:40]} 38. Kxb2 {[%emt 0:00:02]} Ke7 {[%emt 0:00:06]} 39. f6+ {[%emt 0:00:00]} gxf6 {[%emt 0:00:00]} 40. Rh4 {[%emt 0:00:00]} Bg2 {[%emt 0:00:00]} 41. f4 {[%emt 0:16:24]} Ke6 {[%emt 0:15:18]} 42. Rxh6 {[%emt 0:00:08]} Kf5 {[%emt 0:00:06]} 43. Rh4 {[%emt 0:00:14]} Bf3 {[%emt 0:00:20]} 44. Kc3 {[%emt 0:00:12]} Bg4 {[%emt 0:00:05]} 45. Rh6 {[%emt 0:00:04]} Kxf4 {[%emt 0:08:55]} 46. Rxf6+ {[%emt 0:00:07]} Kg5 {[%emt 0:00:35]} 47. Rxf7 {[%emt 0:00:03]} Be6 {[%emt 0:00:07]} 48. Rf2 {[%emt 0:00:07]} Kg6 {[%emt 0:00:48]} 49. Kd4 {[%emt 0:00:03]} Kg7 {[%emt 0:00:43]} 50. Ke5 {[%emt 0:00:06]} Bg8 {[%emt 0:00:04]} 51. Rg2+ {[%emt 0:00:18]} Kh8 {[%emt 0:00:06]} 52. Kf6 {[%emt 0:00:06]} Bh7 {[%emt 0:00:06]} 53. Rh2 {[%emt 0:00:39]} Kg8 {[%emt 0:00:06]} 54. Rd2 {[%emt 0:00:10]} Kh8 {[%emt 0:00:07]} 55. Kf7 {[%emt 0:00:18]} Bg8+ {[%emt 0:00:08]} 56. Kg6 {[%emt 0:00:36]} Bh7+ {[%emt 0:00:23]} 57. Kh6 {[%emt 0:00:04]} Bg8 {[%emt 0:00:06]} 58. Rb2 {[%emt 0:00:35]} Bd5 {[%emt 0:00:36]} 59. Rb4 {[%emt 0:00:16]} Bf7 {[%emt 0:00:16]} 60. Rb7 {[%emt 0:00:24]} Bc4 {[%emt 0:01:35]} 61. Kg6 {[%emt 0:01:51]} Bd3+ {[%emt 0:00:07]} 62. Kf6 {[%emt 0:00:09]} Bh7 {[%emt 0:00:18]} 63. Kf7 {[%emt 0:00:42]} Bg8+ {[%emt 0:01:37]} 64. Kg6 {[%emt 0:00:10]} Bc4 {[%emt 0:03:19]} 65. Rd7 {[%emt 0:00:29]} Bg8 {[%emt 0:02:01]} 66. Rc7 {[%emt 0:01:09]} Ba2 {[%emt 0:00:28]} 67. Rh7+ {[%emt 0:00:18]} Kg8 {[%emt 0:00:01]} 68. Ra7 {[%emt 0:00:26]} Bb1+ {[%emt 0:00:02]} 69. Kf6 {[%emt 0:00:09]} Bc2 {[%emt 0:01:06]} 70. Ra8+ {[%emt 0:00:13]} Kh7 {[%emt 0:00:08]} 71. Ra2 {[%emt 0:00:02]} Bb3 {[%emt 0:00:32]} 72. Rf2 {[%emt 0:00:31]} Bc4 {[%emt 0:00:53]} 73. Rh2+ {[%emt 0:00:15]} Kg8 {[%emt 0:00:01]} 74. Rg2+ {[%emt 0:00:08]} Kh7 {[%emt 0:00:05]} 75. Rg7+ {[%emt 0:00:03]} Kh8 {[%emt 0:00:06]} 76. Kg6 {[%emt 0:00:05]} Bg8 {[%emt 0:01:20]} 77. Rc7 {[%emt 0:00:17]} Ba2 {[%emt 0:00:10]} 78. Rc8+ {[%emt 0:00:03]} Bg8 {[%emt 0:00:04]} 79. Rf8 {[%emt 0:45:46]} 1/2-1/2

[Event "14th Margaryan Memorial-IM 2024"]
[Site "Yerevan"]
[Date "2024.01.12"]
[Round "5.10"]
[White "Ambartsumian, Tyhran"]
[Black "Putrenko, Kirill"]
[Result "1-0"]
[ECO "B51"]
[WhiteElo "2224"]
[BlackElo "2353"]
[Annotator "RC"]
[PlyCount "77"]
[EventDate "2024.01.08"]
[EventType "tourn"]
[EventCountry "ARM"]
[SourceTitle "playchess.com"]
[Source "ChessBase"]
[SourceQuality "1"]
[TimeControl "40/5400+30:1800+30"]

1. e4 {[%emt 0:00:09]} c5 {[%emt 0:00:11]} 2. Nf3 {[%emt 0:00:05]} d6 {[%emt 0:00:06]} 3. Bb5+ {[%emt 0:00:04]} Nd7 {[%emt 0:00:07]} 4. Ba4 {[%emt 0:00:05]} Ngf6 {[%emt 0:00:09]} 5. O-O {[%emt 0:00:06]} e6 {[%emt 0:00:12]} 6. Re1 {[%emt 0:00:07]} a6 {[%emt 0:00:11]} 7. c3 {[%emt 0:00:22]} b5 {[%emt 0:00:52]} 8. Bc2 {[%emt 0:00:26]} Bb7 {[%emt 0:00:45]} 9. d4 {[%emt 0:00:48]} Be7 {[%emt 0:00:16]} 10. Nbd2 {[%emt 0:00:19]} Qc7 {[%emt 0:00:15]} 11. e5 {[%emt 0:09:13]} dxe5 {[%emt 0:00:48]} 12. dxe5 {[%emt 0:01:43]} Nd5 {[%emt 0:00:02]} 13. h4 {[%emt 0:11:41]} h6 {[%emt 0:07:51]} 14. h5 {[%emt 0:05:52]} c4 {[%emt 0:05:01]} 15. Ne4 {[%emt 0:11:45]} Nxe5 {[%emt 0:28:27]} 16. Nxe5 {[%emt 0:01:24]} Qxe5 {[%emt 0:00:03]} 17. Nc5 {[%emt 0:00:26]} Qc7 {[%emt 0:01:05]} 18. Nxb7 {[%emt 0:00:36]} Qxb7 {[%emt 0:00:24]} 19. Qf3 {[%emt 0:02:02]} Rd8 {[%emt 0:04:49]} 20. Bf4 {[%emt 0:15:35]} Qb6 {[%emt 0:03:08]} 21. Be5 {[%emt 0:02:17]} Bf6 {[%emt 0:01:34]} 22. Bg3 {[%emt 0:00:28]} Bg5 {[%emt 0:10:45]} 23. Be5 {[%emt 0:04:47]} Bf6 {[%emt 0:05:48]} 24. Bg3 {[%emt 0:00:51]} Bg5 {[%emt 0:06:19]} 25. Be5 {[%emt 0:00:39]} Nf6 {[%emt 0:00:38]} 26. Bd4 {[%emt 0:01:41]} Rxd4 {[%emt 0:07:28]} 27. cxd4 {[%emt 0:00:10]} O-O {[%emt 0:00:18]} 28. Rad1 {[%emt 0:01:16]} Rd8 {[%emt 0:00:40]} 29. b3 {[%emt 0:04:41]} Qa5 {[%emt 0:02:44]} 30. bxc4 {[%emt 0:01:42]} bxc4 {[%emt 0:00:17]} 31. Qe2 {[%emt 0:00:18]} Qc3 {[%emt 0:01:39]} 32. Rb1 {[%emt 0:05:22]} Nxh5 {[%emt 0:03:31]} 33. g3 {[%emt 0:12:26]} Nf6 {[%emt 0:01:45]} 34. Rb7 {[%emt 0:00:40]} Rc8 {[%emt 0:05:26]} 35. Rxf7 {[%emt 0:01:08]} Rc6 {[%emt 0:01:19]} 36. Rb7 {[%emt 0:02:06]} Bd2 {[%emt 0:01:24]} 37. Bg6 {[%emt 0:00:11]} Kf8 {[%emt 0:01:32]} 38. Rf7+ {[%emt 0:00:05]} Kg8 {[%emt 0:00:07]} 39. Rb1 {[%emt 0:00:08]} 1-0

[Event "14th Margaryan Memorial-IM 2024"]
[Site "Yerevan"]
[Date "2024.01.13"]
[Round "6.1"]
[White "Babujian, Levon"]
[Black "Davtyan, Arsen"]
[Result "0-1"]
[ECO "E51"]
[WhiteElo "2346"]
[BlackElo "2392"]
[Annotator "RC"]
[PlyCount "200"]
[EventDate "2024.01.08"]
[EventType "tourn"]
[EventCountry "ARM"]
[SourceTitle "playchess.com"]
[Source "ChessBase"]
[SourceQuality "1"]
[TimeControl "40/5400+30:1800+30"]

1. c4 {[%emt 0:07:59]} e6 {[%emt 0:00:42]} 2. d4 {[%emt 0:00:57]} Nf6 {[%emt 0:00:08]} 3. Nf3 {[%emt 0:00:13]} d5 {[%emt 0:00:12]} 4. Nc3 {[%emt 0:00:14]} Bb4 {[%emt 0:00:06]} 5. e3 {[%emt 0:00:37]} O-O {[%emt 0:00:22]} 6. a3 {[%emt 0:00:52]} Be7 {[%emt 0:03:12]} 7. Be2 {[%emt 0:03:49]} b6 {[%emt 0:03:39]} 8. O-O {[%emt 0:00:31]} Bb7 {[%emt 0:04:26]} 9. b4 {[%emt 0:00:59]} dxc4 {[%emt 0:13:36]} 10. Bxc4 {[%emt 0:00:39]} Nbd7 {[%emt 0:05:03]} 11. Bb2 {[%emt 0:04:06]} c5 {[%emt 0:10:00]} 12. dxc5 {[%emt 0:02:02]} bxc5 {[%emt 0:00:15]} 13. b5 {[%emt 0:00:27]} Nb6 {[%emt 0:16:23]} 14. Be2 {[%emt 0:00:31]} c4 {[%emt 0:07:20]} 15. a4 {[%emt 0:03:30]} a5 {[%emt 0:00:41]} 16. Qc2 {[%emt 0:09:40]} Qc7 {[%emt 0:04:08]} 17. Rac1 {[%emt 0:03:18]} Rac8 {[%emt 0:04:55]} 18. h3 {[%emt 0:01:22]} Rfd8 {[%emt 0:01:21]} 19. Rfd1 {[%emt 0:00:09]} h6 {[%emt 0:05:14]} 20. Rxd8+ {[%emt 0:01:34]} Rxd8 {[%emt 0:01:16]} 21. Rd1 {[%emt 0:00:50]} Rc8 {[%emt 0:03:24]} 22. Nd4 {[%emt 0:01:22]} Nfd5 {[%emt 0:02:32]} 23. Nxd5 {[%emt 0:02:54]} Nxd5 {[%emt 0:00:31]} 24. Ba1 {[%emt 0:08:58]} c3 {[%emt 0:04:56]} 25. Qb3 {[%emt 0:02:46]} Qe5 {[%emt 0:03:43]} 26. Nc2 {[%emt 0:04:24]} Nf4 {[%emt 0:01:50]} 27. Bg4 {[%emt 0:09:13]} Nxg2 {[%emt 0:02:54]} 28. Rd7 {[%emt 0:00:05]} Nh4 {[%emt 0:00:35]} 29. Rxe7 {[%emt 0:07:59]} Nf3+ {[%emt 0:00:32]} 30. Bxf3 {[%emt 0:01:17]} Bxf3 {[%emt 0:00:02]} 31. Ne1 {[%emt 0:01:41]} Qg5+ {[%emt 0:00:18]} 32. Kh2 {[%emt 0:00:05]} Qe5+ {[%emt 0:01:07]} 33. Kg1 {[%emt 0:00:02]} Bd5 {[%emt 0:00:58]} 34. Re8+ {[%emt 0:04:51]} Rxe8 {[%emt 0:00:06]} 35. Qxc3 {[%emt 0:00:01]} Qxc3 {[%emt 0:00:54]} 36. Bxc3 {[%emt 0:00:02]} Bb3 {[%emt 0:00:35]} 37. b6 {[%emt 0:00:23]} Bxa4 {[%emt 0:00:23]} 38. Bxa5 {[%emt 0:00:05]} Bc6 {[%emt 0:00:26]} 39. Nd3 {[%emt 0:00:05]} Ra8 {[%emt 0:00:28]} 40. Bb4 {[%emt 0:00:00]} Ra1+ {[%emt 0:00:00]} 41. Kh2 {[%emt 0:15:54]} Rb1 {[%emt 0:18:06]} 42. Bc5 {[%emt 0:01:14]} f6 {[%emt 0:01:41]} 43. f4 {[%emt 0:02:15]} Kf7 {[%emt 0:01:02]} 44. Bd4 {[%emt 0:00:35]} Kg6 {[%emt 0:01:11]} 45. Kg3 {[%emt 0:00:57]} Kf5 {[%emt 0:01:23]} 46. Kf2 {[%emt 0:00:30]} Rb3 {[%emt 0:00:54]} 47. Nc1 {[%emt 0:01:05]} Rb5 {[%emt 0:02:13]} 48. Ne2 {[%emt 0:01:24]} e5 {[%emt 0:00:22]} 49. fxe5 {[%emt 0:00:37]} fxe5 {[%emt 0:00:13]} 50. e4+ {[%emt 0:00:18]} Kf6 {[%emt 0:01:04]} 51. Be3 {[%emt 0:00:18]} Bxe4 {[%emt 0:00:25]} 52. h4 {[%emt 0:01:07]} Bc6 {[%emt 0:00:24]} 53. Ng3 {[%emt 0:00:21]} Rb2+ {[%emt 0:00:50]} 54. Ke1 {[%emt 0:00:02]} g6 {[%emt 0:01:55]} 55. Bxh6 {[%emt 0:02:49]} Rxb6 {[%emt 0:00:04]} 56. Bg5+ {[%emt 0:00:16]} Kf7 {[%emt 0:01:13]} 57. Nf1 {[%emt 0:00:46]} Rb2 {[%emt 0:00:43]} 58. Ne3 {[%emt 0:00:27]} Ke6 {[%emt 0:00:01]} 59. Bh6 {[%emt 0:00:42]} Bb5 {[%emt 0:00:36]} 60. Kd1 {[%emt 0:00:31]} Ra2 {[%emt 0:00:04]} 61. Kc1 {[%emt 0:00:20]} Ba4 {[%emt 0:00:31]} 62. Bg5 {[%emt 0:00:26]} Re2 {[%emt 0:00:19]} 63. Bh6 {[%emt 0:00:33]} e4 {[%emt 0:01:05]} 64. Bf4 {[%emt 0:00:19]} Bb3 {[%emt 0:00:25]} 65. Kb1 {[%emt 0:00:36]} Rf2 {[%emt 0:00:56]} 66. Bh6 {[%emt 0:01:11]} Kd6 {[%emt 0:00:11]} 67. Ng4 {[%emt 0:00:34]} Rg2 {[%emt 0:00:44]} 68. Ne3 {[%emt 0:00:30]} Re2 {[%emt 0:00:17]} 69. Ng4 {[%emt 0:02:36]} Kd5 {[%emt 0:01:18]} 70. Bg5 {[%emt 0:01:06]} Kc4 {[%emt 0:01:59]} 71. Bf6 {[%emt 0:00:20]} Bc2+ {[%emt 0:01:40]} 72. Kc1 {[%emt 0:00:27]} Kd5 {[%emt 0:02:04]} 73. Kb2 {[%emt 0:01:22]} Bd1+ {[%emt 0:00:26]} 74. Kc1 {[%emt 0:00:22]} Ba4 {[%emt 0:00:03]} 75. Bg5 {[%emt 0:00:31]} Rc2+ {[%emt 0:01:00]} 76. Kb1 {[%emt 0:00:03]} Rc8 {[%emt 0:00:38]} 77. Kb2 {[%emt 0:00:43]} Rc6 {[%emt 0:00:40]} 78. Be3 {[%emt 0:00:27]} Bd1 {[%emt 0:00:24]} 79. Nf2 {[%emt 0:00:13]} Be2 {[%emt 0:00:28]} 80. Nh3 {[%emt 0:00:09]} Ke5 {[%emt 0:00:33]} 81. Ng5 {[%emt 0:02:20]} Bd3 {[%emt 0:00:51]} 82. Kb3 {[%emt 0:00:42]} Rc2 {[%emt 0:00:30]} 83. Nf7+ {[%emt 0:00:49]} Ke6 {[%emt 0:00:02]} 84. Nh6 {[%emt 0:01:29]} Re2 {[%emt 0:01:06]} 85. Bg5 {[%emt 0:00:11]} Rg2 {[%emt 0:00:32]} 86. Kc3 {[%emt 0:00:21]} Kd5 {[%emt 0:00:27]} 87. Bd2 {[%emt 0:02:12]} Bb5 {[%emt 0:00:31]} 88. Bg5 {[%emt 0:01:04]} Ba4 {[%emt 0:00:25]} 89. Ng8 {[%emt 0:00:26]} Rc2+ {[%emt 0:00:31]} 90. Kb4 {[%emt 0:00:03]} Rc4+ {[%emt 0:00:00]} 91. Ka3 {[%emt 0:00:04]} Ke6 {[%emt 0:01:02]} 92. Kb2 {[%emt 0:01:14]} Bd1 {[%emt 0:00:12]} 93. Nh6 {[%emt 0:01:07]} Rc2+ {[%emt 0:00:47]} 94. Kb1 {[%emt 0:00:15]} Rf2 {[%emt 0:00:38]} 95. Kc1 {[%emt 0:00:20]} Bh5 {[%emt 0:00:13]} 96. Ng8 {[%emt 0:00:30]} Ke5 {[%emt 0:00:26]} 97. Ne7 {[%emt 0:02:39]} Kd4 {[%emt 0:00:15]} 98. Nc6+ {[%emt 0:00:12]} Kc3 {[%emt 0:00:17]} 99. Kb1 {[%emt 0:00:22]} Rf1+ {[%emt 0:00:21]} 100. Ka2 {[%emt 0:00:01]} Bg4 {[%emt 0:00:09]} 0-1

[Event "14th Margaryan Memorial-IM 2024"]
[Site "Yerevan"]
[Date "2024.01.13"]
[Round "6.2"]
[White "Shuvalova, Polina"]
[Black "Ivanov, Sergey"]
[Result "1/2-1/2"]
[ECO "B29"]
[WhiteElo "2475"]
[BlackElo "2462"]
[Annotator "RC"]
[PlyCount "92"]
[EventDate "2024.01.08"]
[EventType "tourn"]
[EventCountry "ARM"]
[SourceTitle "playchess.com"]
[Source "ChessBase"]
[SourceQuality "1"]
[TimeControl "40/5400+30:1800+30"]

1. e4 {[%emt 0:00:03]} c5 {[%emt 0:00:11]} 2. Nf3 {[%emt 0:00:04]} Nf6 {[%emt 0:00:14]} 3. Nc3 {[%emt 0:01:54]} d5 {[%emt 0:00:34]} 4. exd5 {[%emt 0:03:44]} Nxd5 {[%emt 0:00:09]} 5. Bb5+ {[%emt 0:00:10]} Bd7 {[%emt 0:02:02]} 6. Ne5 {[%emt 0:01:20]} Bxb5 {[%emt 0:01:46]} 7. Qf3 {[%emt 0:00:31]} f6 {[%emt 0:01:23]} 8. Nxb5 {[%emt 0:04:49]} Na6 {[%emt 0:00:51]} 9. Qh5+ {[%emt 0:03:46]} g6 {[%emt 0:00:46]} 10. Nxg6 {[%emt 0:00:03]} hxg6 {[%emt 0:00:15]} 11. Qxh8 {[%emt 0:00:24]} Qd7 {[%emt 0:00:30]} 12. Qh4 {[%emt 0:02:19]} Qxb5 {[%emt 0:07:11]} 13. c4 {[%emt 0:00:11]} Qb4 {[%emt 0:03:03]} 14. Qe4 {[%emt 0:02:59]} Ndc7 {[%emt 0:15:18]} 15. Qxg6+ {[%emt 0:00:20]} Kd7 {[%emt 0:00:52]} 16. b3 {[%emt 0:04:15]} Qb6 {[%emt 0:02:11]} 17. O-O {[%emt 0:00:28]} Rd8 {[%emt 0:01:01]} 18. Bb2 {[%emt 0:04:38]} Kc8 {[%emt 0:01:02]} 19. Bc3 {[%emt 0:04:32]} Ne6 {[%emt 0:03:32]} 20. h4 {[%emt 0:04:41]} Qd6 {[%emt 0:03:17]} 21. Rae1 {[%emt 0:01:22]} Nac7 {[%emt 0:05:27]} 22. Re4 {[%emt 0:03:08]} Kb8 {[%emt 0:05:51]} 23. g3 {[%emt 0:01:58]} b5 {[%emt 0:11:04]} 24. a3 {[%emt 0:09:02]} b4 {[%emt 0:02:08]} 25. axb4 {[%emt 0:00:35]} cxb4 {[%emt 0:00:08]} 26. c5 {[%emt 0:00:09]} Nxc5 {[%emt 0:02:08]} 27. Rxb4+ {[%emt 0:46:35]} Ka8 {[%emt 0:00:25]} 28. h5 {[%emt 0:00:00]} Qd3 {[%emt 0:06:06]} 29. Qxd3 {[%emt 0:00:00]} Nxd3 {[%emt 0:00:41]} 30. Rd4 {[%emt 0:00:00]} Rd5 {[%emt 0:06:09]} 31. Ra1 {[%emt 0:00:00]} Kb7 {[%emt 0:03:35]} 32. Rxd5 {[%emt 0:00:00]} Nxd5 {[%emt 0:00:08]} 33. Ra4 {[%emt 0:00:00]} e5 {[%emt 0:02:30]} 34. Rg4 {[%emt 0:00:00]} Ne7 {[%emt 0:02:05]} 35. Bb4 {[%emt 0:00:00]} Nxb4 {[%emt 0:00:33]} 36. Rxb4+ {[%emt 0:00:00]} Kc7 {[%emt 0:00:26]} 37. Ra4 {[%emt 0:00:00]} Nc6 {[%emt 0:00:32]} 38. g4 {[%emt 0:00:00]} Bh6 {[%emt 0:01:28]} 39. d3 {[%emt 0:00:00]} a5 {[%emt 0:00:34]} 40. Kg2 {[%emt 0:00:00]} Kd6 {[%emt 0:00:00]} 41. Rc4 {[%emt 0:13:15]} Kd5 {[%emt 0:26:28]} 42. Kf1 {[%emt 0:05:46]} Bg5 {[%emt 0:02:53]} 43. Ke1 {[%emt 0:06:55]} Nd4 {[%emt 0:05:36]} 44. Ra4 {[%emt 0:00:12]} Nc6 {[%emt 0:02:28]} 45. Rc4 {[%emt 0:00:06]} Nd4 {[%emt 0:01:08]} 46. Ra4 {[%emt 0:00:04]} Nc6 {[%emt 0:01:00]} 1/2-1/2

[Event "14th Margaryan Memorial-IM 2024"]
[Site "Yerevan"]
[Date "2024.01.13"]
[Round "6.4"]
[White "Shahinyan, David"]
[Black "Sorensen, Hampus"]
[Result "1-0"]
[ECO "C56"]
[WhiteElo "2436"]
[BlackElo "2458"]
[Annotator "RC"]
[PlyCount "123"]
[EventDate "2024.01.08"]
[EventType "tourn"]
[EventCountry "ARM"]
[SourceTitle "playchess.com"]
[Source "ChessBase"]
[SourceQuality "1"]
[TimeControl "40/5400+30:1800+30"]

1. e4 {[%emt 0:05:13]} e5 {[%emt 0:00:05]} 2. Nf3 {[%emt 0:00:04]} Nc6 {[%emt 0:00:08]} 3. d4 {[%emt 0:00:04]} exd4 {[%emt 0:00:13]} 4. Bc4 {[%emt 0:00:33]} Nf6 {[%emt 0:08:56]} 5. O-O {[%emt 0:00:49]} Nxe4 {[%emt 0:01:43]} 6. Re1 {[%emt 0:00:06]} d5 {[%emt 0:00:13]} 7. Bxd5 {[%emt 0:00:05]} Qxd5 {[%emt 0:00:06]} 8. Nc3 {[%emt 0:00:04]} Qh5 {[%emt 0:10:16]} 9. Nxe4 {[%emt 0:00:19]} Be6 {[%emt 0:05:30]} 10. Bg5 {[%emt 0:00:05]} Bd6 {[%emt 0:06:40]} 11. Nxd6+ {[%emt 0:01:58]} cxd6 {[%emt 0:00:17]} 12. Bf4 {[%emt 0:00:01]} O-O {[%emt 0:03:03]} 13. Nxd4 {[%emt 0:00:48]} Qxd1 {[%emt 0:00:36]} 14. Rexd1 {[%emt 0:00:39]} Nxd4 {[%emt 0:00:25]} 15. Rxd4 {[%emt 0:00:03]} Rfc8 {[%emt 0:01:05]} 16. c3 {[%emt 0:00:27]} d5 {[%emt 0:00:34]} 17. a4 {[%emt 0:00:04]} Rc4 {[%emt 0:00:35]} 18. Be3 {[%emt 0:00:04]} Rxd4 {[%emt 0:01:39]} 19. Bxd4 {[%emt 0:00:04]} a6 {[%emt 0:00:15]} 20. f3 {[%emt 0:00:56]} Re8 {[%emt 0:02:58]} 21. g4 {[%emt 0:00:33]} f6 {[%emt 0:01:15]} 22. Kf2 {[%emt 0:00:12]} Kf7 {[%emt 0:00:17]} 23. Rg1 {[%emt 0:02:54]} Bd7 {[%emt 0:00:47]} 24. b3 {[%emt 0:00:08]} h5 {[%emt 0:08:35]} 25. h3 {[%emt 0:04:30]} hxg4 {[%emt 0:03:45]} 26. hxg4 {[%emt 0:00:02]} Rh8 {[%emt 0:00:35]} 27. a5 {[%emt 0:00:25]} Rh2+ {[%emt 0:00:14]} 28. Kg3 {[%emt 0:00:12]} Re2 {[%emt 0:00:55]} 29. Rh1 {[%emt 0:00:17]} Kg8 {[%emt 0:13:38]} 30. g5 {[%emt 0:06:46]} fxg5 {[%emt 0:00:50]} 31. Rh5 {[%emt 0:00:09]} Bf5 {[%emt 0:01:30]} 32. Rxg5 {[%emt 0:00:45]} g6 {[%emt 0:00:04]} 33. Kf4 {[%emt 0:00:05]} Re7 {[%emt 0:03:20]} 34. Rg1 {[%emt 0:00:43]} Kf7 {[%emt 0:06:15]} 35. Bc5 {[%emt 0:02:01]} Re8 {[%emt 0:06:08]} 36. Rh1 {[%emt 0:00:36]} Ke6 {[%emt 0:00:06]} 37. Kg5 {[%emt 0:00:28]} Rc8 {[%emt 0:01:49]} 38. b4 {[%emt 0:03:57]} Rc7 {[%emt 0:01:06]} 39. Re1+ {[%emt 0:00:39]} Kd7 {[%emt 0:00:41]} 40. Re5 {[%emt 0:00:00]} Kc6 {[%emt 0:00:00]} 41. Kf6 {[%emt 0:15:35]} Rh7 {[%emt 0:17:26]} 42. Bd4 {[%emt 0:05:47]} Rd7 {[%emt 0:01:28]} 43. Re8 {[%emt 0:01:21]} Rd6+ {[%emt 0:03:23]} 44. Kg5 {[%emt 0:02:08]} Rd7 {[%emt 0:00:41]} 45. Rf8 {[%emt 0:05:36]} Bd3 {[%emt 0:10:09]} 46. Be5 {[%emt 0:04:43]} Kb5 {[%emt 0:01:55]} 47. Rf6 {[%emt 0:01:43]} Rh7 {[%emt 0:02:26]} 48. Rb6+ {[%emt 0:01:40]} Kc4 {[%emt 0:00:09]} 49. Rxg6 {[%emt 0:00:17]} Bxg6 {[%emt 0:00:45]} 50. Kxg6 {[%emt 0:00:06]} Rh3 {[%emt 0:00:40]} 51. f4 {[%emt 0:00:21]} Rg3+ {[%emt 0:01:24]} 52. Kh6 {[%emt 0:03:23]} Rh3+ {[%emt 0:07:50]} 53. Kg6 {[%emt 0:00:48]} Kd3 {[%emt 0:00:53]} 54. Kf5 {[%emt 0:03:24]} Kc4 {[%emt 0:00:09]} 55. Ke6 {[%emt 0:12:13]} Rh6+ {[%emt 0:00:02]} 56. Kf5 {[%emt 0:02:15]} Kd3 {[%emt 0:00:26]} 57. Bd4 {[%emt 0:00:54]} Rh5+ {[%emt 0:01:22]} 58. Kg6 {[%emt 0:00:23]} Rh3 {[%emt 0:00:04]} 59. f5 {[%emt 0:01:14]} Rg3+ {[%emt 0:00:12]} 60. Kf7 {[%emt 0:00:19]} Ke4 {[%emt 0:00:12]} 61. f6 {[%emt 0:00:48]} Kf5 {[%emt 0:00:03]} 62. Ke7 {[%emt 0:00:11]} 1-0

[Event "14th Margaryan Memorial-IM 2024"]
[Site "Yerevan"]
[Date "2024.01.13"]
[Round "6.5"]
[White "Agasarov, Benik"]
[Black "Ohanyan, Emin"]
[Result "1/2-1/2"]
[ECO "D61"]
[WhiteElo "2340"]
[BlackElo "2456"]
[Annotator "RC"]
[PlyCount "82"]
[EventDate "2024.01.08"]
[EventType "tourn"]
[EventCountry "ARM"]
[SourceTitle "playchess.com"]
[Source "ChessBase"]
[SourceQuality "1"]
[TimeControl "40/5400+30:1800+30"]

1. d4 {[%emt 0:00:03]} d5 {[%emt 0:05:59]} 2. Nf3 {[%emt 0:00:07]} e6 {[%emt 0:00:23]} 3. c4 {[%emt 0:00:12]} Nd7 {[%emt 0:00:41]} 4. Nc3 {[%emt 0:03:30]} Ngf6 {[%emt 0:01:10]} 5. Bg5 {[%emt 0:00:52]} h6 {[%emt 0:00:24]} 6. Bh4 {[%emt 0:00:12]} Be7 {[%emt 0:01:16]} 7. e3 {[%emt 0:00:16]} O-O {[%emt 0:00:13]} 8. Qc2 {[%emt 0:01:00]} c5 {[%emt 0:02:36]} 9. dxc5 {[%emt 0:04:36]} Nxc5 {[%emt 0:03:52]} 10. cxd5 {[%emt 0:01:26]} Nxd5 {[%emt 0:04:47]} 11. Bxe7 {[%emt 0:24:36]} Nxe7 {[%emt 0:00:59]} 12. Rd1 {[%emt 0:00:07]} Qb6 {[%emt 0:07:03]} 13. a3 {[%emt 0:00:37]} a5 {[%emt 0:01:55]} 14. Ne5 {[%emt 0:03:19]} Qc7 {[%emt 0:05:10]} 15. Na4 {[%emt 0:15:12]} b6 {[%emt 0:16:01]} 16. Nd3 {[%emt 0:01:12]} Nxd3+ {[%emt 0:02:25]} 17. Bxd3 {[%emt 0:00:07]} Qxc2 {[%emt 0:00:17]} 18. Bxc2 {[%emt 0:00:04]} b5 {[%emt 0:06:10]} 19. Nc5 {[%emt 0:01:24]} Ra7 {[%emt 0:00:34]} 20. Be4 {[%emt 0:01:33]} f5 {[%emt 0:15:07]} 21. Bf3 {[%emt 0:00:36]} Ng6 {[%emt 0:07:52]} 22. Be2 {[%emt 0:04:18]} b4 {[%emt 0:03:32]} 23. axb4 {[%emt 0:00:43]} axb4 {[%emt 0:00:01]} 24. O-O {[%emt 0:01:57]} Rc7 {[%emt 0:02:04]} 25. Rc1 {[%emt 0:35:01]} Rd8 {[%emt 0:12:29]} 26. Nb3 {[%emt 0:00:00]} Rxc1 {[%emt 0:00:00]} 27. Rxc1 {[%emt 0:00:00]} Bb7 {[%emt 0:00:00]} 28. Bc4 {[%emt 0:00:00]} Kf7 {[%emt 0:00:00]} 29. Bxe6+ {[%emt 0:00:00]} Kxe6 {[%emt 0:00:00]} 30. Nc5+ {[%emt 0:00:00]} Kf6 {[%emt 0:00:00]} 31. Nxb7 {[%emt 0:00:00]} Rd2 {[%emt 0:00:00]} 32. b3 {[%emt 0:00:00]} Ne5 {[%emt 0:00:00]} 33. h3 {[%emt 0:00:00]} Ke6 {[%emt 0:00:00]} 34. Rc7 {[%emt 0:00:00]} Kf6 {[%emt 0:00:00]} 35. Nc5 {[%emt 0:00:00]} Nd3 {[%emt 0:00:00]} 36. Rd7 {[%emt 0:00:00]} Rd1+ {[%emt 0:00:00]} 37. Kh2 {[%emt 0:00:00]} Nxf2 {[%emt 0:00:00]} 38. Kg3 {[%emt 0:00:00]} Nh1+ {[%emt 0:00:00]} 39. Kh2 {[%emt 0:00:00]} Nf2 {[%emt 0:00:00]} 40. Kg3 {[%emt 0:00:00]} Nh1+ {[%emt 0:00:00]} 41. Kh2 {[%emt 0:10:55]} Nf2 {[%emt 0:21:32]} 1/2-1/2